bitfinex/quotes_ETHUSD_20251015
["timestamp","ask_amount","ask_price","bid_price","bid_amount"]
[1760502489612,0.38123392,4113.6,4112.7,0.002]
[1760502489799,3.0976,4113.5,4112.7,0.002]
[1760502490111,0.1208,4113.2,4112.9,0.4306]
[1760502490312,0.1208,4113.2,4112.9,2.43136161]
[1760502490313,3.2184,4113.2,4112.9,2.43136161]
[1760502490514,3.2184,4113.2,4113.0,2.43129702]
[1760502491827,3.2184,4113.2,4112.7,2.43348753]
[1760502492113,3.2184,4113.2,4112.8,2.43138527]
[1760502492321,3.2184,4113.2,4112.9,2.43136391]
[1760502493404,3.2184,4113.2,4113.0,2.43129221]
[1760502493612,3.2184,4113.2,4112.9,2.4313664]
[1760502494022,3.2184,4113.2,4113.0,2.43131221]
[1760502494622,0.1208,4113.4,4113.1,0.6522]
[1760502494789,2.464,4113.3,4113.2,0.42915381]
[1760502494985,0.6606423,4113.9,4113.4,2.43102188]
[1760502495210,2.464,4113.8,4113.2,2.86030147]
[1760502495387,4.654,4113.8,4113.4,2.43106427]
[1760502495587,4.654,4113.8,4113.5,2.43101234]
[1760502495812,4.654,4113.8,4113.2,0.1208]
[1760502496013,4.654,4113.8,4113.7,2.43090162]
[1760502496389,4.654,4113.8,4113.5,2.43096507]
[1760502496629,4.654,4113.8,4113.6,2.43093414]
[1760502498133,3.559,4113.8,4113.7,2.43090162]
[1760502498460,2.464,4113.8,4113.7,2.86150162]
[1760502498968,2.464,4113.8,4113.7,2.43090162]
[1760502499126,2.464,4113.8,4113.6,2.43090645]
[1760502499627,0.6336,4113.5,4113.1,0.002]
[1760502499964,2.5848,4113.4,4113.2,2.4311892]
[1760502500145,2.5848,4113.4,4113.1,0.002]
[1760502500347,3.2184,4113.4,4113.3,2.43113801]
[1760502500650,3.2184,4113.4,4113.3,2.86173801]
[1760502501382,0.001,4114.2,4113.8,2.4307906]
[1760502501525,0.6336,4114.0,4113.8,2.4307906]
[1760502501835,0.1208,4113.8,4113.7,2.43088738]
[1760502502022,2.5848,4113.8,4113.7,2.43088738]
[1760502504131,2.5848,4113.8,4113.1,0.002]
[1760502504132,0.6336,4113.7,4113.1,0.002]
[1760502504333,0.1208,4113.4,4113.3,2.43108836]
[1760502504636,0.1208,4113.4,4113.1,0.002]
[1760502504637,0.6336,4113.3,4113.1,0.002]
[1760502504836,1.065,4113.3,4113.1,0.002]
[1760502505057,0.0996,4113.2,4113.1,0.002]
[1760502505259,5.35439712,4113.2,4113.1,0.002]
[1760502505564,4.25939712,4113.2,4113.1,0.002]
[1760502505865,3.16439712,4113.2,4113.1,0.002]
[1760502506032,4.00352851,4113.2,4113.1,0.002]
[1760502506632,6.46752851,4113.2,4113.1,0.002]
[1760502507371,8.38752851,4113.2,4113.1,0.002]
[1760502507743,8.76886203,4113.2,4113.1,0.002]
[1760502509266,8.86641717,4113.2,4113.1,0.002]
[1760502513344,22.44202546,4113.2,4113.1,0.002]
[1760502514656,22.06069194,4113.2,4113.1,0.002]
[1760502515278,24.25269194,4113.2,4113.1,0.002]
[1760502515475,0.6336,4112.9,4112.6,0.002]
[1760502515678,2.43135251,4113.0,4112.6,0.002]
[1760502515679,3.35419269,4112.7,4112.6,0.002]
[1760502515976,5.81819269,4112.7,4112.6,0.002]
[1760502516180,6.01606282,4112.7,4112.6,0.002]
[1760502516408,6.88657758,4112.7,4112.6,0.002]
[1760502517450,11.1538003,4112.7,4112.6,0.002]
[1760502517780,13.45518564,4112.7,4112.6,0.002]
[1760502519485,22.78290286,4112.7,4112.2,0.002]
[1760502519675,3.1861292,4112.3,4112.2,1e-08]
[1760502519873,3.06544747,4112.1,4112.0,1e-08]
[1760502520078,7.45044747,4112.1,4112.0,1e-08]
[1760502520272,7.55074747,4112.1,4112.0,1e-08]
[1760502520462,7.93220211,4112.1,4112.0,1e-08]
[1760502520670,8.86891839,4112.1,4112.0,1e-08]
[1760502520984,8.86891839,4112.1,4111.7,0.002]
[1760502521186,3.0657432,4111.6,4111.5,0.002]
[1760502521390,7.4507432,4111.6,4111.5,0.002]
[1760502521688,7.5513432,4111.6,4111.5,0.002]
[1760502521872,9.18757188,4111.6,4111.5,0.002]
[1760502522391,9.08697188,4111.6,4111.5,0.002]
[1760502524480,6.62197188,4111.6,4111.5,0.002]
[1760502524668,9.08697188,4111.6,4111.5,0.002]
[1760502525077,6.62197188,4111.6,4111.5,0.002]
[1760502525280,11.27897188,4111.6,4111.5,0.002]
[1760502526584,10.28357188,4111.6,4111.5,0.002]
[1760502526792,4.98586151,4111.4,4111.3,1e-08]
[1760502526998,7.45086151,4111.4,4111.3,1e-08]
[1760502528815,7.54845783,4111.4,4111.3,1e-08]
[1760502532606,3.16345783,4111.4,4111.3,1e-08]
[1760502532774,5.62845783,4111.4,4111.3,0.43080001]
[1760502532974,6.32733982,4111.4,4111.3,0.43080001]
[1760502533175,6.70883294,4111.4,4111.3,1e-08]
[1760502535314,10.82083294,4111.4,4111.3,1e-08]
[1760502536313,9.72483294,4111.4,4111.3,1e-08]
[1760502537094,8.72943294,4111.4,4111.3,1e-08]
[1760502538615,3.06609817,4111.0,4110.9,1e-08]
[1760502538827,5.48470799,4111.0,4110.9,1e-08]
[1760502539117,7.94970799,4111.0,4110.9,1e-08]
[1760502541407,12.22005638,4111.0,4110.9,1e-08]
[1760502543111,12.60158299,4111.0,4110.9,1e-08]
[1760502543980,12.69919146,4111.0,4110.9,1e-08]
[1760502544178,12.79979146,4111.0,4110.9,1e-08]
[1760502544630,3.06680842,4109.8,4109.7,0.233]
[1760502544933,12.27215055,4109.8,4109.7,0.233]
[1760502545086,12.27215055,4109.8,4109.7,0.6665]
[1760502545437,12.65373788,4109.8,4109.7,0.6665]
[1760502545580,12.65373788,4109.8,4109.4,0.6665]
[1760502545581,3.06692684,4109.6,4109.4,0.6665]
[1760502545783,7.05279331,4109.6,4109.4,0.233]
[1760502546388,7.05279331,4109.6,4109.5,0.4355]
[1760502547006,7.05279331,4109.6,4109.5,0.002]
[1760502547532,7.05279331,4109.6,4109.5,0.4355]
[1760502548549,8.97279331,4109.6,4109.5,0.002]
[1760502549005,8.97279331,4109.6,4109.5,0.4355]
[1760502550202,6.50779331,4109.6,4109.5,0.4355]
[1760502550403,6.53946647,4109.6,4109.5,0.4355]
[1760502550831,8.97279331,4109.6,4109.5,0.4355]
[1760502551128,0.6336,4109.6,4109.5,0.4355]
[1760502551333,3.0986,4109.6,4109.5,0.4355]
[1760502551698,2.465,4109.6,4109.5,0.4355]
[1760502552105,3.0986,4109.6,4109.5,0.4355]
[1760502554634,3.65178809,4109.6,4109.5,0.002]
[1760502554833,3.0986,4109.6,4109.5,0.4684]
[1760502555236,4.1956,4109.6,4109.5,0.4684]
[1760502555536,5.674195,4109.6,4109.5,0.4684]
[1760502557599,8.10752184,4109.6,4109.5,0.4684]
[1760502558012,5.674195,4109.6,4109.5,0.4684]
[1760502559416,8.10752184,4109.6,4109.5,0.4684]
[1760502559617,5.674195,4109.6,4109.5,0.4684]
[1760502559929,3.480195,4109.6,4109.5,0.4684]
[1760502561644,3.0986,4109.6,4109.5,0.4684]
[1760502563042,5.53192684,4109.6,4109.5,0.4684]
[1760502563245,3.0986,4109.6,4109.5,0.4684]
[1760502565221,1.7306,4109.6,4109.5,0.4684]
[1760502565429,2.43272269,4110.7,4109.6,2.43327293]
[1760502565624,2.465,4110.3,4109.7,2.43324898]
[1760502565846,0.001,4110.4,4109.8,0.4664]
[1760502566046,2.465,4110.3,4110.2,0.2242]
[1760502566351,2.465,4110.3,4110.2,0.6906]
[1760502567353,3.0986,4110.3,4110.2,0.6906]
[1760502568749,0.001,4110.4,4110.2,0.6906]
[1760502568939,0.1226,4110.4,4110.3,2.89931243]
[1760502569250,0.1226,4110.4,4110.3,3.45496662]
[1760502569251,2.5876,4110.4,4110.3,3.45496662]
[1760502571456,2.466,4110.4,4110.3,3.45496662]
[1760502574360,0.001,4110.4,4110.3,3.45496662]
[1760502574574,2.465,4110.4,4110.3,3.45496662]
[1760502575391,4.657,4110.4,4110.3,3.45496662]
[1760502576972,3.561,4110.4,4110.3,3.45496662]
[1760502577570,2.465,4110.4,4110.3,3.45496662]
[1760502577878,2.465,4110.4,4110.3,3.57656662]
[1760502579863,2.465,4110.4,4110.3,5.49656662]
[1760502581185,0.001,4110.4,4110.3,5.49656662]
[1760502581368,2.465,4110.4,4110.3,5.49656662]
[1760502583681,0.001,4110.9,4110.8,2.43261652]
[1760502583892,0.001,4110.9,4110.8,8.0451812]
[1760502584204,0.001,4110.9,4110.8,10.5497812]
[1760502584492,0.001,4110.9,4110.8,10.4281812]
[1760502584666,0.001,4110.9,4110.8,10.5497812]
[1760502584864,0.001,4111.3,4111.2,2.43237984]
[1760502585084,0.001,4111.3,4111.2,10.15689729]
[1760502585285,2.193,4111.3,4111.2,10.74149729]
[1760502586099,4.656,4111.3,4111.2,10.74149729]
[1760502586900,4.656,4111.3,4111.2,5.1524639]
[1760502587200,2.563,4111.3,4110.7,0.1216]
[1760502587418,0.1216,4111.1,4110.9,2.43252522]
[1760502587777,0.1216,4111.1,4111.0,2.43249817]
[1760502588112,0.2206,4111.1,4110.5,0.1216]
[1760502588311,0.6336,4111.0,4110.6,2.43271343]
[1760502588514,0.1216,4110.8,4110.6,2.43273176]
[1760502588700,2.463,4110.7,4110.6,2.43273176]
[1760502589517,2.463,4110.7,4110.6,3.38249001]
[1760502590184,2.463,4110.7,4110.6,2.91949001]
[1760502591202,2.463,4110.7,4110.6,3.38249001]
[1760502592104,0.1216,4111.1,4111.0,2.43249817]
[1760502592306,2.5846,4111.1,4111.0,2.43249817]
[1760502593315,0.001,4111.3,4111.2,2.43237984]
[1760502593511,2.464,4111.3,4111.2,2.43237984]
[1760502595289,4.656,4111.3,4111.2,2.43237984]
[1760502595911,0.6336,4111.2,4110.9,2.43251113]
[1760502596089,0.7326,4111.2,4110.9,2.43253403]
[1760502596419,0.6336,4111.2,4110.4,0.4355]
[1760502596709,0.6336,4111.2,4110.9,2.43250775]
[1760502596904,0.6336,4111.2,4111.0,2.43248956]
[1760502598118,0.6336,4111.2,4110.6,0.4355]
[1760502598287,3.559,4111.1,4111.0,2.43249817]
[1760502599723,0.001,4111.3,4111.2,2.43237984]
[1760502599921,2.464,4111.3,4111.2,2.43237984]
[1760502600906,2.464,4111.3,4111.2,2.86787984]
[1760502601799,2.464,4111.3,4110.6,0.4355]
[1760502602002,2.464,4111.3,4111.2,2.43237984]
[1760502602724,2.464,4111.3,4111.2,2.86787984]
[1760502603122,2.464,4111.3,4111.2,7.99391323]
[1760502604226,2.463,4111.3,4111.2,2.43237984]
[1760502604822,2.463,4111.3,4111.2,2.86787984]
[1760502604999,2.463,4111.3,4111.2,3.93348979]
[1760502605323,4.655,4111.3,4111.2,3.95781358]
[1760502605522,4.655,4111.3,4111.2,5.85348979]
[1760502606417,3.559,4111.3,4111.2,5.85348979]
[1760502606809,2.463,4111.3,4111.2,5.85348979]
[1760502608604,0.001,4111.4,4111.3,2.43232067]
[1760502608818,0.001,4111.4,4111.3,9.12513693]
[1760502609015,0.001,4111.4,4111.3,9.22241373]
[1760502609895,0.001,4111.8,4111.7,2.43208405]
[1760502610102,0.001,4111.8,4111.7,9.59971744]
[1760502610335,0.001,4111.8,4111.7,10.07061744]
[1760502610540,0.001,4111.8,4111.7,11.32089565]
[1760502611233,2.463,4111.8,4111.7,11.32089565]
[1760502612541,0.001,4112.2,4112.1,2.43184747]
[1760502612746,0.001,4112.2,4112.1,7.55788086]
[1760502612914,0.001,4112.2,4112.1,7.67868086]
[1760502613114,0.001,4112.2,4112.1,3.61079834]
[1760502613923,0.937,4112.2,4112.1,6.02601681]
[1760502614121,0.937,4112.2,4112.1,6.00169834]
[1760502615249,2.033,4112.2,4112.1,6.22419834]
[1760502615412,0.1208,4112.8,4112.1,6.22419834]
[1760502615413,0.1208,4112.8,4112.7,2.43149269]
[1760502615618,0.7326,4113.4,4113.2,2.4311536]
[1760502615815,0.6336,4113.3,4113.2,2.4311536]
[1760502616016,0.099,4113.6,4113.2,2.43119712]
[1760502616315,0.099,4113.5,4113.4,2.43107891]
[1760502616623,0.1208,4113.6,4113.5,2.43101981]
[1760502617063,0.001,4114.2,4113.5,0.98142006]
[1760502617212,0.001,4114.2,4113.9,2.43076821]
[1760502617213,0.1208,4114.0,4113.9,2.43076821]
[1760502619360,0.6336,4113.9,4110.6,2.43468538]
[1760502619565,0.6336,4113.4,4110.6,2.90563002]
[1760502619762,4.26090863,4112.1,4110.7,0.30289117]
[1760502620052,2.43171922,4112.4,4110.6,0.002]
[1760502620053,0.1333,4110.8,4110.6,0.002]
[1760502620268,2.417,4110.7,4110.6,0.002]
[1760502620468,2.5183,4110.7,4110.6,0.002]
[1760502620630,3.1519,4110.7,4110.6,0.002]
[1760502620827,5.9130957,4110.7,4110.6,0.002]
[1760502621333,3.48042,4110.7,4110.6,0.002]
[1760502622040,2.84682,4110.7,4110.6,0.002]
[1760502622237,0.6336,4110.7,4110.6,0.002]
[1760502622430,3.0996,4110.7,4110.6,0.002]
[1760502622829,3.2009,4110.7,4110.6,0.002]
[1760502623463,3.0996,4110.7,4110.6,0.002]
[1760502625266,1.096,4110.7,4110.6,0.002]
[1760502625465,4.658,4110.7,4110.6,2.43473488]
[1760502625667,4.658,4110.7,4110.6,2.9687829]
[1760502625973,3.562,4110.7,4110.6,3.4396829]
[1760502626132,0.38145769,4111.6,4111.2,2.43237984]
[1760502626336,0.602,4111.3,4111.2,2.43237984]
[1760502626555,0.602,4111.3,4111.2,2.94111445]
[1760502626755,0.602,4111.3,4111.2,3.41201445]
[1760502628778,1.412,4111.3,4111.2,5.33201445]
[1760502629459,1.412,4111.3,4111.2,5.45361445]
[1760502629843,0.001,4111.3,4111.2,5.45361445]
[1760502630049,0.001,4112.2,4111.7,2.43208405]
[1760502630244,0.001,4112.2,4111.7,4.59529246]
[1760502630445,0.001,4112.2,4111.7,4.71689246]
[1760502630651,0.1701,4111.9,4111.7,0.1216]
[1760502630962,0.1701,4111.9,4111.6,2.43210175]
[1760502631135,0.1701,4111.9,4111.7,2.43208405]
[1760502631336,2.467,4111.8,4111.7,2.43208405]
[1760502631758,2.467,4111.8,4111.6,2.43213173]
[1760502631952,2.467,4111.8,4111.7,2.43208405]
[1760502632678,2.467,4111.8,4111.6,0.69059867]
[1760502632897,2.467,4111.8,4111.5,1.92]
[1760502633456,2.467,4111.8,4111.7,2.43208405]
[1760502633856,2.467,4111.8,4111.4,0.1216]
[1760502634101,2.467,4111.8,4110.7,1.92]
[1760502634102,0.7326,4111.7,4110.7,1.92]
[1760502634257,0.1216,4111.3,4111.0,2.43249817]
[1760502634457,2.466,4111.2,4111.1,2.43243447]
[1760502635069,2.565,4111.2,4110.7,1.92]
[1760502635293,2.192,4111.1,4110.9,2.43255734]
[1760502635791,2.192,4111.1,4111.0,2.43249817]
[1760502636102,4.658,4111.1,4111.0,2.90339817]
[1760502636258,4.658,4111.1,4111.0,3.48176078]
[1760502637259,4.658,4111.1,4111.0,3.01086078]
[1760502637959,4.658,4111.1,4111.0,3.48176078]
[1760502638161,2.466,4111.1,4111.0,3.48176078]
[1760502638592,2.466,4111.1,4111.0,3.01086078]
[1760502638962,2.466,4111.1,4111.0,3.48176078]
[1760502639700,2.466,4111.1,4110.8,2.36763014]
[1760502639855,0.7326,4111.0,4110.6,0.002]
[1760502640177,2.466,4110.9,4110.8,2.43261652]
[1760502641391,2.565,4110.9,4110.6,0.002]
[1760502641559,0.099,4110.8,4110.6,0.002]
[1760502641889,0.1216,4110.8,4110.7,2.4326757]
[1760502642187,2.5876,4110.8,4110.7,2.91942705]
[1760502642387,2.466,4110.8,4110.7,2.91942705]
[1760502644089,0.1216,4111.0,4110.9,2.43255734]
[1760502644298,2.5876,4111.0,4110.9,2.43255734]
[1760502644685,2.466,4111.0,4110.9,2.86935734]
[1760502644883,2.466,4111.0,4110.9,3.46059578]
[1760502645289,0.1216,4111.4,4111.3,2.43232067]
[1760502645596,3.6836,4111.4,4111.3,2.43232067]
[1760502647291,2.5876,4111.4,4111.3,2.43232067]
[1760502648810,2.466,4111.4,4111.3,2.43232067]
[1760502648994,2.466,4111.4,4111.3,2.95267501]
[1760502650566,2.466,4111.4,4111.3,3.38947501]
[1760502651177,0.1694,4111.9,4111.6,2.43208873]
[1760502651387,0.291,4111.9,4111.7,2.43205828]
[1760502651975,0.291,4111.9,4111.3,0.52035434]
[1760502652186,0.291,4111.9,4111.7,2.43208087]
[1760502652393,2.465,4111.8,4111.7,2.43208087]
[1760502652895,2.465,4111.8,4111.6,2.43213018]
[1760502655295,2.192,4111.7,4111.6,2.43213018]
[1760502655498,1.096,4111.7,4111.6,2.43213018]
[1760502655690,1.096,4111.7,4111.6,3.36496895]
[1760502655998,0.1216,4111.9,4111.8,2.4320249]
[1760502656166,2.5856,4111.9,4111.8,2.4320249]
[1760502657498,0.1216,4111.9,4111.8,2.8784249]
[1760502657691,0.001,4112.7,4112.5,2.43159765]
[1760502657897,1.218,4112.6,4112.5,2.43159765]
[1760502658599,0.001,4112.7,4112.6,2.43155181]
[1760502658909,2.465,4112.7,4112.6,2.43155181]
[1760502659094,2.465,4112.7,4112.6,2.87795181]
[1760502659302,2.465,4112.7,4112.4,2.43164449]
[1760502659479,2.465,4112.7,4112.6,2.43155181]
[1760502659825,2.465,4112.7,4112.6,2.87795181]
[1760502660181,2.465,4112.7,4112.6,2.43155181]
[1760502660517,2.465,4112.7,4112.6,4.79795181]
[1760502660518,0.001,4112.7,4112.6,4.79795181]
[1760502660722,2.465,4112.7,4112.6,5.6938694]
[1760502660877,2.465,4112.7,4112.6,5.66955389]
[1760502664882,0.001,4112.9,4112.7,1.92]
[1760502665082,0.001,4112.9,4112.8,2.4557479]
[1760502665298,2.193,4112.9,4112.8,2.9021479]
[1760502665588,0.001,4113.1,4113.0,2.43131534]
[1760502665900,0.001,4113.1,4113.0,4.37562849]
[1760502666212,0.17,4113.1,4113.0,4.94282849]
[1760502666419,0.17,4113.1,4113.0,4.91851534]
[1760502667818,0.001,4113.3,4113.2,2.43119712]
[1760502668029,0.001,4113.3,4113.2,5.27816837]
[1760502668328,0.001,4113.3,4113.2,5.72456837]
[1760502668691,0.001,4113.3,4113.2,5.84536837]
[1760502668886,0.001,4114.2,4113.2,5.84536837]
[1760502669087,0.001,4114.2,4114.1,2.43066527]
[1760502669292,0.001,4114.2,4114.1,2.55146527]
[1760502670416,2.462,4114.2,4114.1,2.55146527]
[1760502672420,2.5616,4114.2,4113.8,0.1208]
[1760502672621,2.5616,4114.2,4112.5,2.43159096]
[1760502672622,0.2782,4113.9,4113.3,2.43113801]
[1760502672820,0.1002,4113.8,4113.3,2.43113487]
[1760502673118,0.1208,4114.1,4113.5,0.1208]
[1760502673309,2.462,4113.7,4113.6,2.45527031]
[1760502673510,2.462,4113.7,4113.6,5.32190228]
[1760502673715,2.462,4113.7,4113.6,5.41839268]
[1760502674017,2.462,4113.7,4113.6,4.96039268]
[1760502674187,2.462,4113.7,4113.6,4.47176071]
[1760502674589,2.462,4113.7,4113.6,2.43096071]
[1760502675322,4.652,4113.7,4113.6,2.43096071]
[1760502675819,4.652,4113.7,4112.5,2.65996926]
[1760502675820,4.7533,4113.7,4112.5,2.65996926]
[1760502675997,0.1208,4113.5,4113.0,0.1208]
[1760502676190,4.652,4113.7,4113.2,0.1208]
[1760502676388,0.001,4114.2,4113.3,0.458]
[1760502676587,0.001,4114.2,4113.8,2.43078843]
[1760502676804,0.414,4114.1,4114.0,2.43071451]
[1760502677497,2.462,4114.1,4114.0,2.43071451]
[1760502677888,0.001,4114.2,4114.1,2.43066527]
[1760502678094,2.463,4114.2,4114.1,2.43066527]
[1760502678829,2.463,4114.2,4114.1,3.11706527]
[1760502679921,2.463,4114.2,4114.1,2.43066527]
[1760502681525,2.463,4114.2,4114.0,0.1208]
[1760502681724,0.099,4114.1,4113.6,0.1208]
[1760502681925,0.256,4114.0,4113.6,2.43090469]
[1760502682098,0.1208,4114.0,4113.7,2.91317328]
[1760502682300,0.1208,4114.0,4113.9,2.43078344]
[1760502682842,0.1208,4114.0,4113.9,2.45509127]
[1760502683041,2.463,4114.2,4114.0,2.43072435]
[1760502683242,2.461,4114.1,4114.0,2.88872435]
[1760502683814,2.461,4114.1,4114.0,2.43072435]
[1760502684216,2.461,4114.1,4114.0,2.88872435]
[1760502684424,2.461,4114.1,4114.0,3.00952435]
[1760502684623,2.461,4114.1,4114.0,3.38993813]
[1760502685345,4.651,4114.1,4114.0,3.84793813]
[1760502685904,4.651,4114.1,4114.0,3.38993813]
[1760502686334,4.651,4114.1,4114.0,2.55152435]
[1760502686500,4.651,4114.1,4114.0,2.43072435]
[1760502686935,2.56,4114.1,4113.9,2.4307377]
[1760502687235,2.56,4114.1,4114.0,2.43072435]
[1760502687440,2.56,4114.1,4113.9,2.43077459]
[1760502687732,0.099,4114.0,4113.8,2.55163024]
[1760502688045,2.461,4114.1,4113.0,2.43331001]
[1760502688046,0.2576,4113.9,4113.0,0.002]
[1760502688197,0.1208,4113.8,4113.3,1.92]
[1760502688396,2.461,4114.1,4114.0,2.43072435]
[1760502689036,2.461,4114.1,4113.4,3.11747699]
[1760502689531,2.461,4114.1,4114.0,2.43072435]
[1760502690533,0.001,4114.2,4114.1,4.35066527]
[1760502690827,2.463,4114.2,4114.1,4.80866527]
[1760502691049,3.0966,4114.2,4112.1,0.2338]
[1760502691227,1.28306688,4114.1,4112.5,0.002]
[1760502691397,3.06485623,4113.1,4112.5,0.002]
[1760502691598,3.06515181,4112.6,4112.5,0.002]
[1760502691830,3.06515181,4112.6,4112.1,0.002]
[1760502691831,0.6336,4112.3,4112.1,0.002]
[1760502692016,4.89778833,4112.2,4112.1,0.002]
[1760502692336,7.54838833,4112.2,4112.1,0.002]
[1760502693040,5.08238833,4112.2,4112.1,0.002]
[1760502693222,8.30079729,4112.2,4112.1,0.002]
[1760502694139,8.68225337,4112.2,4112.1,0.002]
[1760502695436,10.87225337,4112.2,4112.1,0.002]
[1760502695637,7.31025337,4112.2,4112.1,0.002]
[1760502695939,10.87225337,4112.2,4112.1,0.002]
[1760502696432,8.68225337,4112.2,4112.1,0.002]
[1760502699427,6.21525337,4112.2,4112.1,0.002]
[1760502699631,8.68225337,4112.2,4112.1,0.002]
[1760502699848,6.21525337,4112.2,4112.1,0.002]
[1760502700023,8.04865337,4112.2,4112.1,0.002]
[1760502700228,8.68225337,4112.2,4112.1,0.002]
[1760502700556,8.30079729,4112.2,4112.1,0.002]
[1760502700759,5.20019729,4112.2,4112.1,0.002]
[1760502700957,7.57019729,4112.2,4112.1,0.002]
[1760502701161,8.20379729,4112.2,4112.1,0.002]
[1760502701360,6.28379729,4112.2,4112.1,0.002]
[1760502701563,0.2425,4112.7,4112.1,0.002]
[1760502701734,2.43178833,4112.2,4112.1,0.002]
[1760502702061,5.53238833,4112.2,4112.1,0.002]
[1760502702258,3.1006,4112.2,4112.1,0.002]
[1760502702430,5.53238833,4112.2,4112.1,0.002]
[1760502702965,3.1006,4112.2,4112.1,0.002]
[1760502703262,3.0996,4112.2,4112.1,0.002]
[1760502703560,0.6336,4112.2,4112.1,0.002]
[1760502703766,3.0996,4112.2,4112.1,0.002]
[1760502704770,5.53138833,4112.2,4112.1,0.002]
[1760502705185,6.08452716,4112.2,4112.1,0.002]
[1760502705387,8.27652716,4112.2,4112.1,0.002]
[1760502705583,5.84473883,4112.2,4112.1,0.002]
[1760502705881,5.2916,4112.2,4112.1,0.002]
[1760502706781,7.72338833,4112.2,4112.1,0.002]
[1760502706985,6.62738833,4112.2,4112.1,0.002]
[1760502707207,4.1956,4112.2,4112.1,0.002]
[1760502707556,6.62738833,4112.2,4112.1,0.002]
[1760502708262,4.1956,4112.2,4112.1,0.002]
[1760502709389,6.62738833,4112.2,4112.1,0.002]
[1760502709562,5.53138833,4112.2,4112.1,0.002]
[1760502710064,3.0996,4112.2,4112.1,0.002]
[1760502710700,0.6336,4112.2,4112.1,0.6714]
[1760502710862,2.465,4112.2,4112.1,0.98174111]
[1760502711061,0.1208,4112.2,4112.1,0.6714]
[1760502711491,2.5858,4112.2,4112.1,0.6714]
[1760502713703,2.5858,4112.2,4112.1,0.2199]
[1760502714202,2.5858,4112.2,4112.1,0.6772]
[1760502715395,3.6818,4112.2,4112.1,0.6772]
[1760502717000,3.6818,4112.2,4112.1,3.10904747]
[1760502717896,0.1208,4112.4,4112.2,2.431764]
[1760502718101,2.463,4112.2,4112.1,3.20585459]
[1760502718595,0.1208,4112.4,4112.1,1.23130712]
[1760502718773,0.759,4112.3,4112.2,2.88908833]
[1760502720304,0.759,4112.3,4112.1,0.002]
[1760502720883,0.759,4112.3,4112.2,2.43178833]
[1760502721078,0.759,4112.3,4112.1,2.6099]
[1760502721079,0.759,4112.3,4112.1,0.002]
[1760502721890,0.759,4112.3,4112.1,0.4593]
[1760502722095,0.759,4112.3,4112.1,0.002]
[1760502722486,0.759,4112.3,4112.1,2.8910916]
[1760502723091,0.1208,4112.4,4112.2,0.4573]
[1760502723278,0.1208,4112.4,4112.3,2.4317292]
[1760502723476,0.1208,4112.4,4112.3,3.42131559]
[1760502723811,0.001,4112.5,4112.4,2.43167007]
[1760502724112,0.001,4112.5,4112.4,2.91328677]
[1760502724274,2.463,4112.5,4112.4,2.91328677]
[1760502724476,2.463,4112.5,4112.4,2.88897007]
[1760502724776,2.463,4112.5,4112.4,3.48654864]
[1760502725077,2.463,4112.5,4112.1,0.002]
[1760502725279,2.192,4112.4,4112.2,2.43178833]
[1760502725492,1.096,4112.4,4112.3,0.4573]
[1760502725777,1.096,4112.4,4112.3,2.8890292]
[1760502729096,2.5838,4112.5,4112.3,2.8890292]
[1760502729295,2.5838,4112.5,4112.4,2.43167007]
[1760502729903,2.5838,4112.5,4112.4,2.90647007]
[1760502731316,2.5838,4112.5,4112.4,2.96569]
[1760502731523,2.463,4112.5,4112.4,3.44049]
[1760502733388,0.001,4112.5,4112.4,3.44049]
[1760502733601,2.463,4112.5,4112.4,5.3848067]
[1760502733803,2.343,4112.5,4112.4,5.48129]
[1760502734532,0.001,4112.5,4112.4,5.60055973]
[1760502734706,2.319,4112.5,4112.4,5.60055973]
[1760502735297,3.415,4112.5,4112.4,5.60055973]
[1760502735797,3.415,4112.5,4112.4,5.84445973]
[1760502736498,0.001,4113.0,4112.9,2.43137445]
[1760502736697,0.001,4113.0,4112.9,5.02965738]
[1760502736920,0.001,4113.0,4112.9,5.62525738]
[1760502737695,2.463,4113.0,4112.9,5.62525738]
[1760502738601,2.562,4113.0,4111.1,0.002]
[1760502738895,3.20848833,4112.2,4111.1,0.002]
[1760502739227,5.67348833,4112.2,4111.1,0.002]
[1760502739523,5.77288833,4112.2,4111.1,0.002]
[1760502739734,6.59334441,4112.2,4111.1,0.002]
[1760502742111,0.1431,4112.2,4111.3,0.4748]
[1760502742312,0.1426,4112.5,4111.1,0.002]
[1760502742535,0.0999,4112.2,4111.1,0.002]
[1760502742745,3.16528833,4112.2,4111.1,0.002]
[1760502742949,3.98584455,4112.2,4111.1,0.002]
[1760502744811,1.45415622,4112.2,4111.3,0.2278]
[1760502745016,5.53238833,4112.2,4111.3,0.2278]
[1760502745319,7.72438833,4112.2,4111.3,0.2278]
[1760502745514,7.82428833,4112.2,4111.3,0.2278]
[1760502747246,7.82428833,4112.2,4111.2,0.002]
[1760502747446,5.63228833,4112.2,4111.2,0.002]
[1760502750772,7.55228833,4112.2,4111.2,0.002]
[1760502751048,9.92432099,4112.2,4111.2,0.002]
[1760502751238,10.04300334,4112.2,4111.2,0.002]
[1760502752047,18.74644071,4111.7,4111.2,0.002]
[1760502752242,21.21244071,4111.7,4111.2,0.002]
[1760502752434,23.67748494,4111.7,4111.2,0.002]
[1760502753723,24.05897667,4111.7,4111.2,0.002]
[1760502754963,23.67748494,4111.7,4111.2,0.002]